bitfinex-derivatives/quotes_SOLF0:USTF0_20250425
["timestamp","ask_amount","ask_price","bid_price","bid_amount"]
[1745594598189,34.16,154.09,154.03,7.4696]
[1745594598485,34.16,154.09,154.06,6.486]
[1745594598884,34.16,154.09,154.03,7.4696]
[1745594599188,467.44,154.11,154.05,27.20452008]
[1745594599489,6.484,154.12,154.07,6.4855]
[1745594599688,6.484,154.12,154.05,27.20452008]
[1745594600189,6.484,154.12,154.08,6.4851]
[1745594600489,34.14,154.13,154.08,6.4851]
[1745594600691,34.14,154.13,154.05,27.20452008]
[1745594601195,34.14,154.13,154.11,6.4841]
[1745594601392,34.14,154.17,154.05,27.20452008]
[1745594601593,6.4836,154.13,154.05,27.20452008]
[1745594601793,34.14,154.17,154.05,27.20452008]
[1745594602096,6.483,154.14,154.05,27.20452008]
[1745594602401,34.14,154.17,154.05,27.20452008]
[1745594602591,34.14,154.17,154.08,27.20452008]
[1745594602994,34.14,154.17,154.11,27.20452008]
[1745594603195,40.6219,154.17,154.08,27.20452008]
[1745594603498,34.14,154.17,154.14,6.4829]
[1745594603994,34.14,154.17,154.15,6.4825]
[1745594604197,467.22,154.19,154.15,6.4825]
[1745594604397,90.8987253,154.3,154.17,27.20452008]
[1745594604591,12.84452555,154.29,154.21,6.4796]
[1745594604788,34.14,154.31,154.21,6.4796]
[1745594604990,27.20452008,154.3,154.21,6.4796]
[1745594605190,34.14,154.31,154.2,6.4803]
[1745594605597,6.4779,154.26,154.2,6.4803]
[1745594605797,6.4779,154.26,154.19,6.4808]
[1745594606003,27.20452008,154.3,154.18,4.0952]
[1745594606303,34.14,154.31,154.18,4.0952]
[1745594606710,61.34452008,154.31,154.18,4.0952]
[1745594607205,27.20452008,154.28,154.18,4.0952]
[1745594607405,34.14,154.31,154.22,27.20452008]
[1745594607603,34.14,154.31,154.23,27.20452008]
[1745594607802,34.14,154.31,154.21,27.20452008]
[1745594608007,27.20452008,154.3,154.2,36.88]
[1745594608309,27.20452008,154.3,154.18,4.0952]
[1745594608505,6.4779,154.26,154.18,4.0952]
[1745594608707,27.20452008,154.24,154.16,7.7992]
[1745594608897,6.4808,154.19,154.16,7.7992]
[1745594609105,38.1,154.2,154.09,3.8967]
[1745594609411,38.1,154.2,154.09,7.7404]
[1745594609604,27.20452008,154.18,154.09,7.7404]
[1745594609906,38.1,154.2,154.09,7.7404]
[1745594610110,38.1,154.2,154.09,34.94492008]
[1745594611807,44.5807,154.2,154.13,6.4829]
[1745594612011,38.1,154.2,154.09,34.94492008]
[1745594613111,38.1,154.2,154.13,6.483]
[1745594613506,6.4811,154.19,154.09,34.94492008]
[1745594614005,38.1,154.2,154.09,34.94492008]
[1745594614408,27.20452008,154.19,154.09,34.94492008]
[1745594614607,27.20452008,154.19,154.09,7.7404]
[1745594614810,33.68562008,154.19,154.12,6.4836]
[1745594615107,27.20452008,154.19,154.09,7.7404]
[1745594615411,38.1,154.2,154.09,34.94492008]
[1745594615812,27.20452008,154.18,154.09,7.7404]
[1745594616202,27.20452008,154.18,154.09,3.8437]
[1745594616404,27.20452008,154.15,154.05,27.20452008]
[1745594616611,38.1,154.14,154.05,27.20452008]
[1745594617208,38.1,154.14,154.07,6.4855]
[1745594617414,38.1,154.14,154.03,27.20452008]
[1745594617707,27.20452008,154.12,154.02,3.8436]
[1745594617916,38.1,154.14,154.02,3.8436]
[1745594618211,39.4,154.2,154.07,27.20452008]
[1745594618512,40.5445,154.24,154.14,27.20452008]
[1745594618707,6.4794,154.23,154.15,6.4822]
[1745594618912,40.5445,154.24,154.13,27.20452008]
[1745594619316,6.4792,154.23,154.13,27.20452008]
[1745594619515,40.5445,154.24,154.13,27.20452008]
[1745594619717,39.4,154.24,154.16,27.20452008]
[1745594621015,39.4,154.24,154.13,66.60452008]
[1745594621312,39.4,154.24,154.13,27.20452008]
[1745594621513,39.4,154.24,154.11,27.20452008]
[1745594622311,39.4,154.24,154.09,3.9792]
[1745594622511,66.60452008,154.24,154.12,27.20452008]
[1745594622707,6.4795,154.23,154.12,27.20452008]
[1745594623216,45.8787,154.24,154.12,27.20452008]
[1745594623416,39.4,154.24,154.12,27.20452008]
[1745594623720,6.4792,154.23,154.12,33.68822008]
[1745594623916,66.60452008,154.24,154.12,27.20452008]
[1745594624524,66.60452008,154.24,154.09,3.9792]
[1745594624820,6.4796,154.22,154.12,6.4837]
[1745594625020,66.60452008,154.24,154.11,27.20452008]
[1745594625419,6.4798,154.22,154.12,6.4836]
[1745594625615,6.4798,154.22,154.11,27.20452008]
[1745594625818,6.4798,154.22,154.01,62.0]
[1745594625819,39.4,154.24,153.95,416.41541965]
[1745594626021,39.4,154.24,154.02,10.5964]
[1745594626022,27.20452008,154.15,154.02,10.5964]
[1745594626321,43.34,154.14,154.03,27.20452008]
[1745594626521,45.24,154.13,154.03,35.23712008]
[1745594626719,45.24,154.13,154.03,8.0326]
[1745594626917,72.44452008,154.13,154.03,8.0326]
[1745594627317,72.44452008,154.13,154.02,4.1088]
[1745594627517,27.20452008,154.1,153.99,27.20452008]
[1745594627822,27.20452008,154.11,153.99,33.69342008]
[1745594628022,27.20452008,154.11,153.99,27.20452008]
[1745594628518,27.20452008,154.11,153.97,4.1088]
[1745594629023,1.1462,154.12,153.97,4.1088]
[1745594629223,27.20452008,154.1,153.97,4.1088]
[1745594629423,6.4865,154.06,153.98,6.4896]
[1745594630023,6.4869,154.05,153.98,6.4896]
[1745594630219,6.4869,154.05,153.97,4.1088]
[1745594630619,6.4869,154.05,153.98,6.4893]
[1745594631015,72.44452008,154.07,153.97,4.1088]
[1745594631624,6.4876,154.03,153.97,4.1088]
[1745594631923,72.44452008,154.07,153.97,4.1088]
[1745594632325,6.4871,154.04,153.97,4.1088]
[1745594632521,72.44452008,154.07,153.97,4.1088]
[1745594632923,45.24,154.07,153.98,27.20452008]
[1745594633425,6.4863,154.06,153.98,27.20452008]
[1745594633625,6.4863,154.06,153.99,6.4891]
[1745594633932,51.7259,154.07,153.98,27.20452008]
[1745594634226,45.24,154.07,154.01,6.4883]
[1745594634526,45.24,154.07,153.98,27.20452008]
[1745594635417,45.24,154.07,154.01,6.4881]
[1745594635625,51.7262,154.07,154.01,6.4881]
[1745594635827,45.24,154.07,153.98,27.20452008]
[1745594636126,45.24,154.07,154.01,6.488]
[1745594636523,51.726,154.07,154.01,6.488]
[1745594636724,45.24,154.07,153.98,27.20452008]
[1745594637229,6.4871,154.05,153.98,27.20452008]
[1745594637531,6.4871,154.05,154.0,6.4888]
[1745594638329,45.24,154.07,153.98,27.20452008]
[1745594638628,45.24,154.07,153.9,821.78]
[1745594638832,467.06,154.06,153.91,4.0871]
[1745594639029,27.20452008,154.01,153.91,4.0871]
[1745594639226,48.7,154.0,153.91,4.0871]
[1745594640325,6.4896,153.99,153.92,6.4921]
[1745594640533,48.7,154.0,153.91,4.0871]
[1745594640923,467.06,154.06,153.91,4.0871]
[1745594641130,467.06,154.06,153.97,27.20452008]
[1745594642945,467.06,154.06,153.98,3.9066]
[1745594643725,473.5463,154.06,153.99,6.4888]
[1745594643931,467.06,154.06,153.98,3.9066]
[1745594644130,467.06,154.06,154.0,27.20452008]
[1745594644427,467.14,154.14,154.03,27.20452008]
[1745594644731,56.5838,154.12,154.07,6.4858]
[1745594644928,50.1,154.12,154.06,27.20452008]
[1745594645929,50.1,154.12,154.06,6.4859]
[1745594646130,50.1,154.12,154.03,27.20452008]
[1745594646532,50.1,154.12,154.06,6.4862]
[1745594647033,50.1,154.12,154.03,27.20452008]
[1745594647231,6.4843,154.11,154.05,6.4866]
[1745594647427,50.1,154.12,154.03,27.20452008]
[1745594647625,467.14,154.14,154.06,27.20452008]
[1745594647829,50.1,154.17,154.06,27.20452008]
[1745594648530,50.1,154.17,154.0,386.07012008]
[1745594648724,50.1,154.17,154.05,27.20452008]
[1745594648938,6.483,154.14,154.09,6.4849]
[1745594649534,6.483,154.14,154.1,6.4846]
[1745594649833,50.1,154.17,154.05,27.20452008]
[1745594650632,6.4829,154.14,154.05,27.20452008]
[1745594651228,6.4829,154.14,154.09,6.485]
[1745594651435,50.1,154.17,154.06,31.21282008]
[1745594652235,27.20452008,154.18,154.09,6.4847]
[1745594652536,6.4832,154.14,154.06,31.21282008]
[1745594652736,6.4832,154.14,154.09,6.4847]
[1745594653038,50.08,154.19,154.07,4.0281]
[1745594653233,50.08,154.19,154.07,7.8924]
[1745594653535,50.08,154.19,154.09,27.20452008]
[1745594653936,50.08,154.19,154.14,6.4826]
[1745594654137,6.4812,154.18,154.09,27.20452008]
[1745594654436,50.08,154.19,154.15,6.4825]
[1745594654637,50.08,154.19,154.09,27.20452008]
[1745594655039,6.4823,154.16,154.11,6.484]
[1745594655432,6.4823,154.16,154.12,6.4836]
[1745594655635,6.4819,154.17,154.12,6.4836]
[1745594655840,50.08,154.19,154.09,27.20452008]
[1745594656529,50.08,154.19,154.11,6.4839]
[1745594656842,6.4827,154.15,154.11,6.4839]
[1745594657337,6.4827,154.15,154.1,6.4844]
[1745594657541,27.20452008,154.18,154.07,7.8924]
[1745594657835,27.20452008,154.18,154.07,4.0281]
[1745594658031,27.20452008,154.18,154.08,6.4851]
[1745594658233,27.20452008,154.18,154.07,4.0281]
[1745594658538,6.4832,154.14,154.09,6.4846]
[1745594658738,6.4832,154.14,154.07,4.0281]
[1745594658941,27.20452008,154.18,154.07,4.0281]
[1745594659247,1.1489,154.22,154.13,27.20452008]
[1745594659835,28.35342008,154.22,154.11,27.20452008]
[1745594660036,28.35342008,154.22,154.08,30.92292008]
[1745594660236,27.20452008,154.19,154.08,30.92292008]
[1745594660736,1.1489,154.22,154.11,27.20452008]
[1745594661240,6.4819,154.17,154.12,6.4836]
[1745594661433,1.1489,154.22,154.08,30.92292008]
[1745594661834,6.4815,154.18,154.08,30.92292008]
[1745594662032,1.1489,154.22,154.11,27.20452008]
[1745594662235,467.04,154.23,154.14,27.20452008]
[1745594662430,467.04,154.23,154.16,6.4817]
[1745594662640,467.04,154.23,154.14,27.20452008]
[1745594662844,52.5651,154.27,154.11,51.42]
[1745594663040,6.4798,154.22,154.14,27.20452008]
[1745594663341,51.42,154.27,154.17,27.20452008]
[1745594664034,51.42,154.27,154.21,6.4797]
[1745594664239,51.42,154.27,154.17,27.20452008]
[1745594664439,6.479,154.24,154.17,33.68582008]
[1745594664640,466.9,154.31,154.2,27.20452008]
[1745594665645,6.4767,154.29,154.23,33.68362008]
[1745594665842,6.4767,154.29,154.23,27.20452008]
[1745594666038,51.42,154.32,154.23,27.20452008]
[1745594666241,60.5991502,154.36,154.24,11.5799]
[1745594666448,51.42,154.43,154.3,27.20452008]
[1745594666647,78.62452008,154.43,154.3,27.20452008]
[1745594667258,78.62452008,154.43,154.3,33.68032008]
[1745594667542,78.62452008,154.43,154.3,6.4758]
[1745594667848,78.62452008,154.43,154.25,51.42]
[1745594667849,27.20452008,154.37,154.25,78.62452008]
[1745594668246,1.1421,154.36,154.25,78.62452008]
[1745594669448,6.4757,154.32,154.26,6.4778]
[1745594669640,124.0,154.42,154.25,78.62452008]
[1745594669948,78.62452008,154.43,154.28,27.20452008]
[1745594670251,27.20452008,154.39,154.25,78.62452008]
[1745594670751,27.20452008,154.36,154.25,51.42]
[1745594670950,6.4766,154.29,154.25,57.8982]
[1745594671150,80.06452008,154.36,154.24,11.5799]
[1745594671450,27.20452008,154.33,154.24,7.777]
[1745594671947,27.20452008,154.3,154.2,52.86]
[1745594672251,27.20452008,154.33,154.2,27.20452008]
[1745594672450,27.20452008,154.33,154.18,8.2118]
[1745594672653,27.20452008,154.33,154.18,35.41632008]
[1745594672654,1.1399,154.32,154.18,35.41632008]
[1745594672848,28.34442008,154.32,154.18,35.41632008]
[1745594673752,28.34442008,154.32,154.22,6.4794]
[1745594673952,28.34442008,154.32,154.18,35.41632008]
[1745594674150,1.1399,154.32,154.21,27.20452008]
[1745594674355,6.4758,154.31,154.21,27.20452008]
[1745594674558,27.20452008,154.35,154.24,27.20452008]
[1745594675050,27.20452008,154.35,154.22,52.86]
[1745594675252,124.0,154.34,154.22,52.86]
[1745594675447,27.20452008,154.32,154.18,35.41632008]
[1745594676152,6.4782,154.26,154.19,6.4808]
[1745594676358,6.4782,154.26,154.18,35.41632008]
[1745594676557,6.4782,154.26,154.2,6.4804]
[1745594676754,27.20452008,154.35,154.21,27.20452008]
[1745594677057,27.20452008,154.35,154.24,33.68302008]
[1745594677258,6.4761,154.31,154.24,33.68302008]
[1745594677455,27.20452008,154.35,154.24,27.20452008]
[1745594677657,27.20452008,154.35,154.22,27.20452008]
[1745594677859,6.4761,154.31,154.22,27.20452008]
[1745594678058,27.20452008,154.35,154.24,6.4785]
[1745594678262,27.20452008,154.35,154.22,27.20452008]
[1745594678653,27.20452008,154.32,154.18,35.41632008]
[1745594678968,27.20452008,154.3,154.18,35.41632008]
[1745594679162,27.20452008,154.3,154.19,6.4805]
[1745594679859,6.4793,154.23,154.18,41.89742008]
[1745594680161,27.20452008,154.27,154.18,8.2118]
[1745594680663,6.4802,154.21,154.18,8.2118]
[1745594680866,27.20452008,154.27,154.18,8.2118]
[1745594681259,27.20452008,154.24,154.14,52.84]
[1745594683262,27.20452008,154.24,154.13,4.0475]
[1745594683762,27.20452008,154.21,154.13,4.0475]
[1745594685263,27.20452008,154.18,154.09,67.1336]
[1745594685461,27.20452008,154.18,154.09,60.6487]
[1745594685863,27.20452008,154.18,154.09,3.7483]
[1745594686058,28.34632008,154.21,154.09,3.7483]
[1745594686361,1.1418,154.21,154.09,3.7483]
[1745594687259,1.1418,154.21,154.12,6.4836]
[1745594687464,1.1418,154.21,154.11,27.20452008]
[1745594687657,1.1418,154.21,154.09,30.95282008]
[1745594687858,1.1418,154.21,154.1,6.4842]
[1745594688462,1.1418,154.21,154.09,30.95282008]
[1745594688664,1.1418,154.21,154.11,6.4841]
[1745594689167,6.4827,154.15,154.1,6.4844]
[1745594689362,6.4827,154.15,154.09,30.95282008]
[1745594689563,27.20452008,154.19,154.09,3.7483]
[1745594690164,27.20452008,154.19,154.09,10.233]
[1745594690561,27.20452008,154.16,154.09,3.7483]
[1745594690766,27.20452008,154.16,154.06,6.486]
[1745594690966,27.20452008,154.13,154.06,6.486]
[1745594691162,27.20452008,154.13,154.05,7.6896]
[1745594691467,27.20452008,154.15,154.05,7.6896]
[1745594691863,27.20452008,154.18,154.05,7.6896]
[1745594692559,6.4836,154.13,154.08,6.485]
[1745594692765,27.20452008,154.18,154.05,7.6896]
[1745594693064,6.4836,154.13,154.09,6.4849]
[1745594693766,6.4836,154.13,154.1,6.4845]
[1745594694968,6.4831,154.14,154.11,6.4841]
[1745594695975,6.4833,154.13,154.1,6.4844]
[1745594697068,1.1418,154.21,154.09,27.20452008]
[1745594697367,28.34632008,154.21,154.09,27.20452008]
[1745594697572,52.86,154.22,154.09,27.20452008]
[1745594698370,27.20452008,154.2,154.09,27.20452008]
[1745594698572,27.20452008,154.2,154.11,6.4838]
[1745594698872,27.20452008,154.2,154.09,27.20452008]
[1745594699070,6.4829,154.15,154.11,6.4838]
[1745594699271,27.20452008,154.17,154.06,27.20452008]
[1745594699771,6.4835,154.13,154.09,6.4847]
[1745594699969,27.20452008,154.17,154.05,7.6896]
[1745594700166,27.20452008,154.17,154.05,34.89412008]
[1745594700571,27.20452008,154.14,154.05,7.6896]
[1745594700766,12.9609,154.2,154.05,34.89412008]
[1745594701167,27.20452008,154.18,154.05,34.89412008]
[1745594702979,6.4827,154.15,154.05,34.89412008]
[1745594703183,27.20452008,154.2,154.08,27.20452008]
[1745594703390,52.86,154.22,154.16,6.4818]
[1745594703579,52.86,154.22,154.11,27.20452008]
[1745594703884,6.4815,154.18,154.12,11.9718]
[1745594704083,52.86,154.22,154.12,11.9718]
[1745594704584,52.86,154.22,154.12,8.0231]
[1745594704784,27.20452008,154.18,154.07,3.9487]
[1745594704984,6.4832,154.14,154.1,6.4844]
[1745594705279,27.20452008,154.18,154.07,4.1]
[1745594705475,6.4846,154.1,154.07,10.5857]
[1745594705879,27.20452008,154.14,154.07,10.5857]
[1745594706182,6.4844,154.11,154.07,4.1]
[1745594706984,6.4848,154.1,154.07,4.1]
[1745594707283,27.20452008,154.14,154.07,10.5858]
[1745594707480,6.4844,154.11,154.07,10.5858]
[1745594707879,6.4839,154.12,154.08,6.4854]
[1745594708683,6.4842,154.11,154.08,6.4854]
[1745594708885,27.20452008,154.14,154.08,6.4854]
[1745594709080,51.56,154.15,154.07,4.1]
[1745594709284,50.2,154.2,154.07,31.30452008]
[1745594709779,50.2,154.2,154.1,27.20452008]
[1745594710388,27.20452008,154.24,154.13,27.20452008]
[1745594710582,27.20452008,154.24,154.14,11.7665]
[1745594710883,6.4794,154.23,154.19,6.4807]
[1745594711079,27.20452008,154.24,154.19,6.4807]
[1745594711286,77.40452008,154.26,154.14,11.7665]
[1745594711486,6.4791,154.23,154.2,6.4803]
[1745594711889,6.4791,154.23,154.14,11.7665]
[1745594712188,77.40452008,154.26,154.14,11.7665]
[1745594712681,27.20452008,154.29,154.16,27.20452008]
[1745594712882,60.5991502,154.3,154.19,27.20452008]
[1745594713090,60.5991502,154.3,154.25,6.478]
[1745594713288,60.5991502,154.3,154.19,77.40452008]
[1745594713685,6.477,154.28,154.24,6.4785]
[1745594713890,60.5991502,154.3,154.19,77.40452008]
[1745594714089,50.2,154.31,154.19,77.40452008]
[1745594714580,50.2,154.31,154.23,6.4787]
[1745594714987,50.2,154.31,154.19,77.40452008]
[1745594715286,27.20452008,154.3,154.19,50.2]
[1745594716191,6.478,154.26,154.2,6.4803]
[1745594716490,50.2,154.31,154.19,50.2]
[1745594716687,6.4763,154.3,154.24,6.4786]
[1745594716987,466.86,154.35,154.23,27.20452008]
[1745594717191,27.20452008,154.34,154.23,27.20452008]
[1745594717993,27.20452008,154.34,154.24,6.4785]
[1745594718391,27.20452008,154.34,154.2,27.20452008]
[1745594718596,27.20452008,154.31,154.19,50.2]
[1745594719091,27.20452008,154.31,154.19,77.40452008]
[1745594719397,6.4779,154.26,154.22,6.4793]
[1745594719791,27.20452008,154.31,154.19,50.2]
[1745594719990,48.82,154.29,154.16,27.20452008]
[1745594720294,48.82,154.33,154.22,27.20452008]
[1745594720496,48.82,154.33,154.23,7.6803]
[1745594720696,48.82,154.33,154.24,6.4785]
[1745594720895,27.20452008,154.32,154.23,7.6803]
[1745594721098,6.4781,154.26,154.23,7.6803]
[1745594721797,27.20452008,154.27,154.17,4.0995]
[1745594722188,76.02452008,154.27,154.17,10.5811]
[1745594722496,76.02452008,154.27,154.17,4.0995]
[1745594722894,76.02452008,154.27,154.18,6.4809]
[1745594723202,76.02452008,154.27,154.17,4.0995]
[1745594723498,76.02452008,154.27,154.15,56.5003]
[1745594723793,6.48,154.21,154.17,6.4816]
[1745594724195,76.02452008,154.27,154.15,56.5003]
[1745594724596,27.20452008,154.24,154.15,56.5003]
[1745594725002,6.48,154.21,154.17,6.4813]
[1745594725195,27.20452008,154.24,154.15,56.5003]
[1745594725900,27.20452008,154.21,154.09,4.0864]
[1745594726098,76.02452008,154.21,154.09,18.0104]
[1745594726298,76.02452008,154.21,154.09,11.5257]
[1745594726699,27.20452008,154.18,154.09,11.5257]
[1745594727101,6.4828,154.15,154.09,11.5257]
[1745594727403,27.20452008,154.18,154.09,11.5257]
[1745594728402,6.4834,154.13,154.09,11.5257]
[1745594728603,27.20452008,154.18,154.09,11.5257]
[1745594728805,27.20452008,154.18,154.06,48.82]
[1745594729102,27.20452008,154.18,154.06,55.3059]
[1745594729404,27.20452008,154.18,154.06,48.82]
[1745594729605,27.20452008,154.15,154.05,466.64]
[1745594729904,27.20452008,154.15,154.02,88.12822008]
[1745594730207,27.20452008,154.15,154.04,6.4868]
[1745594730608,6.4849,154.1,154.05,6.4867]
[1745594730905,1.1482,154.2,154.02,88.12822008]
[1745594731106,27.20452008,154.15,154.02,88.12822008]
[1745594731405,27.20452008,154.15,154.04,6.4869]
[1745594731608,27.20452008,154.14,154.02,88.12822008]
[1745594731907,27.20452008,154.14,154.04,6.4871]
[1745594732209,27.20452008,154.14,154.02,60.9237]
[1745594732402,27.20452008,154.14,154.03,6.4872]
[1745594732605,27.20452008,154.14,154.02,60.9237]
[1745594733113,27.20452008,154.11,154.02,67.4116]
[1745594733904,27.20452008,154.13,154.02,60.9237]
[1745594735708,27.20452008,154.13,154.03,6.4873]
[1745594735906,27.20452008,154.13,154.02,60.9237]
[1745594736212,27.20452008,154.13,154.02,67.4114]
[1745594736507,27.20452008,154.1,154.02,12.1037]
[1745594736713,515.62,154.15,153.99,6.4889]
[1745594736714,27.20452008,154.07,153.99,6.4889]
[1745594736915,27.20452008,154.07,153.97,470.717]
[1745594737308,27.20452008,154.07,154.01,6.4881]
[1745594737510,47.54,154.09,153.98,27.20452008]
[1745594737715,47.54,154.09,154.01,27.20452008]
[1745594737911,47.54,154.09,154.03,6.4875]
[1745594738210,47.54,154.09,154.02,7.9368]
[1745594738414,47.54,154.09,154.04,6.4869]
[1745594738614,47.54,154.09,154.02,7.9368]
[1745594738816,47.54,154.14,154.04,27.20452008]
[1745594739015,47.54,154.14,154.06,6.4861]
[1745594739212,47.54,154.14,154.04,27.20452008]
[1745594739415,47.54,154.14,154.02,7.9368]
[1745594739613,47.54,154.14,154.04,27.20452008]
[1745594739810,47.54,154.14,154.05,3.997]
[1745594740518,47.54,154.14,154.09,6.4847]
[1745594741112,47.54,154.14,154.1,6.4844]
[1745594741317,47.54,154.14,154.06,27.20452008]
[1745594742117,47.54,154.14,154.02,55.4768]
[1745594742314,47.54,154.14,154.05,6.4866]
[1745594742514,27.20452008,154.13,154.02,55.4768]
[1745594744818,27.20452008,154.13,154.05,6.4864]
[1745594745018,27.20452008,154.13,154.02,55.4768]
[1745594745317,27.20452008,154.13,154.02,7.9368]
[1745594745710,27.20452008,154.1,154.02,7.9368]
[1745594745914,27.20452008,154.1,154.03,6.4872]
[1745594746419,27.20452008,154.1,154.04,6.4871]
[1745594746617,27.20452008,154.1,154.02,7.9368]
[1745594746921,27.20452008,154.1,154.04,6.4869]
[1745594747219,27.20452008,154.1,154.02,7.9368]
[1745594748518,27.20452008,154.1,154.06,6.4862]
[1745594748715,27.20452008,154.1,154.02,7.9368]
[1745594749119,1.1584,154.12,154.02,7.9368]
[1745594749619,27.20452008,154.13,154.08,6.4851]
[1745594750017,27.20452008,154.13,154.02,35.14132008]
[1745594750521,27.20452008,154.13,154.02,7.9368]
[1745594750727,27.20452008,154.13,154.05,6.4864]
[1745594751021,27.20452008,154.13,154.02,7.9368]
[1745594751221,27.20452008,154.13,154.07,6.4858]
[1745594751723,27.20452008,154.13,154.08,6.485]
[1745594752224,27.20452008,154.13,154.02,7.9368]
[1745594754325,27.20452008,154.13,154.08,6.4851]
[1745594755029,27.20452008,154.13,154.09,6.485]
[1745594755630,27.20452008,154.13,154.08,6.4852]
[1745594756031,47.54,154.14,154.08,6.4852]
[1745594756329,74.74452008,154.14,154.09,6.4849]
[1745594756530,74.74452008,154.14,154.02,7.9368]
[1745594756730,74.74452008,154.14,154.08,6.4852]
[1745594757036,74.74452008,154.14,154.02,7.9368]
[1745594757940,74.74452008,154.14,154.09,6.4848]
[1745594758442,74.74452008,154.14,154.02,7.9368]
[1745594759944,74.74452008,154.14,154.09,6.4847]
[1745594760339,74.74452008,154.14,154.02,7.9368]
[1745594760940,74.74452008,154.14,154.1,6.4842]
[1745594761239,74.74452008,154.14,154.03,40.17952008]
[1745594761435,47.54,154.14,154.05,16.95988569]
[1745594762039,47.54,154.14,154.11,6.4841]
[1745594762341,47.54,154.14,154.05,16.95988569]
[1745594762537,47.54,154.14,154.13,6.4833]
[1745594762746,47.54,154.14,154.07,16.95988569]
[1745594763441,47.54,154.14,154.13,6.4833]
[1745594763641,47.54,154.14,154.07,16.95988569]
[1745594763844,47.54,154.14,154.05,16.95988569]
[1745594764245,64.49988569,154.14,154.05,16.95988569]
[1745594764944,64.49988569,154.14,154.12,6.4836]
[1745594765144,64.49988569,154.14,154.05,16.95988569]
[1745594765345,64.49988569,154.14,154.11,6.4841]
[1745594765548,47.54,154.14,154.07,16.95988569]
[1745594766046,47.54,154.14,154.13,6.4833]
[1745594766243,47.54,154.14,154.07,16.95988569]
[1745594767141,47.54,154.14,154.13,6.4833]
[1745594767447,43.66,154.19,154.11,16.95988569]
[1745594767748,43.66,154.19,154.16,6.4818]
[1745594768447,16.95988569,154.18,154.12,3.7184]
[1745594769145,16.95988569,154.18,154.16,6.4818]
[1745594769546,16.95988569,154.18,154.15,6.4823]
[1745594769749,16.95988569,154.18,154.12,3.7184]
[1745594769948,16.95988569,154.16,154.07,29.93148569]
[1745594770249,16.95988569,154.14,154.12,6.4834]
[1745594770748,16.95988569,154.14,154.05,16.95988569]
[1745594770749,16.95988569,154.14,154.13,6.4833]
[1745594771150,16.95988569,154.16,154.05,16.95988569]
[1745594771950,16.95988569,154.18,154.07,16.95988569]
[1745594772351,60.61988569,154.19,154.15,6.4821]
[1745594772552,60.61988569,154.19,154.09,16.95988569]
[1745594772952,60.61988569,154.19,154.15,6.4822]
[1745594773253,467.02,154.23,154.13,16.95988569]
[1745594773443,467.02,154.23,154.21,6.4797]
[1745594773647,16.95988569,154.25,154.15,16.95988569]
[1745594773952,23.43828569,154.25,154.21,6.4799]
[1745594774352,16.95988569,154.25,154.15,16.95988569]
[1745594774649,16.95988569,154.21,154.14,11.8079]
[1745594774950,16.95988569,154.19,154.14,11.8079]
[1745594775151,16.95988569,154.19,154.15,6.4821]
[1745594775351,27.1191326,154.21,154.15,6.4821]
[1745594775551,33.5992326,154.21,154.15,6.4821]
[1745594775852,33.5992326,154.21,154.16,6.482]
[1745594776048,27.1191326,154.21,154.14,11.8079]
[1745594776442,27.1191326,154.21,154.14,18.2906]
[1745594776647,6.4805,154.2,154.14,18.2906]
[1745594776855,27.1191326,154.21,154.14,11.8079]
[1745594777249,27.1191326,154.21,154.09,43.66]
[1745594777456,27.1191326,154.15,154.08,11.8195]
[1745594777757,33.6016326,154.15,154.08,11.8195]
[1745594778255,42.4,154.14,154.04,42.4]
[1745594778456,42.4,154.14,154.04,50.0705]
[1745594778658,42.4,154.14,154.06,6.4861]
[1745594778953,27.1191326,154.12,154.04,7.6705]
[1745594779457,6.4843,154.11,154.04,14.1575]